[Event "German Masters Women 2018"]
[Site "Dresden"]
[Date "2018.08.11"]
[Round "8.3"]
[White "Hoolt, Sarah"]
[Black "Schneider, Jana"]
[Result "1-0"]
[ECO "C11"]
[WhiteElo "2357"]
[BlackElo "2179"]
[Annotator "NA"]
[PlyCount "79"]
[EventDate "2018.08.04"]
[EventType "tourn"]
[EventCountry "GER"]
[SourceTitle "playchess.com"]
[Source "ChessBase"]
[SourceQuality "1"]
[TimeControl "40/5400+30:1800+30"]

1. e4 {[%emt 1:30:27]} e6 {[%emt 1:30:22]} 2. d4 {[%emt 1:30:51]} d5 {[%emt 1:30:46]} 3. Nc3 {[%emt 1:31:14]} Nf6 {[%emt 1:31:08]} 4. e5 {[%emt 1:31:37]} Nfd7 {[%emt 1:31:32]} 5. f4 {[%emt 1:32:01]} c5 {[%emt 1:31:56]} 6. Nf3 {[%emt 1:32:26]} Nc6 {[%emt 1:32:17]} 7. Be3 {[%emt 1:32:49]} a6 {[%emt 1:32:39]} 8. Qd2 {[%emt 1:32:16]} b5 {[%emt 1:32:58]} 9. Bd3 {[%emt 1:32:24]} Qb6 {[%emt 1:30:52]} 10. dxc5 {[%emt 1:31:43]} Bxc5 {[%emt 1:31:04]} 11. Bf2 {[%emt 1:31:56]} h6 {[%emt 1:29:42]} 12. O-O {[%emt 1:24:52]} Bxf2+ {[%emt 1:21:11]} 13. Rxf2 {[%emt 1:21:48]} Nc5 {[%emt 1:20:11]} 14. Ne2 {[%emt 1:10:36]} Ne4 {[%emt 1:16:18]} 15. Bxe4 {[%emt 1:10:56]} dxe4 {[%emt 1:16:40]} 16. Nfd4 {[%emt 1:11:17]} Bb7 {[%emt 1:16:06]} 17. c3 {[%emt 1:04:13]} O-O {[%emt 1:14:05]} 18. Rd1 {[%emt 0:48:41]} Rfd8 {[%emt 1:00:59]} 19. Ng3 {[%emt 0:47:27]} Rd7 {[%emt 0:51:26]} 20. Qe3 {[%emt 0:38:06]} Rad8 {[%emt 0:48:53]} 21. Rfd2 {[%emt 0:36:37]} Na5 {[%emt 0:40:43]} 22. Nh5 {[%emt 0:33:59]} Kh8 {[%emt 0:37:06]} 23. Qg3 {[%emt 0:33:58]} Rg8 {[%emt 0:36:33]} 24. Qh3 {[%emt 0:26:50]} Rc7 {[%emt 0:26:06]} 25. Re2 {[%emt 0:22:32]} b4 {[%emt 0:24:07]} 26. Re3 {[%emt 0:21:54]} bxc3 {[%emt 0:20:06]} 27. bxc3 {[%emt 0:22:12]} Qc5 {[%emt 0:14:20]} 28. Rg3 {[%emt 0:20:22]} Qe7 {[%emt 0:10:58]} 29. Nf6 {[%emt 0:10:34]} Rd8 {[%emt 0:10:06]} 30. Qg4 {[%emt 0:10:01]} Qf8 {[%emt 0:09:48]} 31. Nh5 {[%emt 0:09:53]} g6 {[%emt 0:09:27]} 32. Nf6 {[%emt 0:10:02]} Nc6 {[%emt 0:07:57]} 33. Rh3 {[%emt 0:08:23]} Ne7 {[%emt 0:07:47]} 34. Qg5 {[%emt 0:06:01]} Nf5 {[%emt 0:07:13]} 35. Ng4 {[%emt 0:03:57]} Kh7 {[%emt 0:04:58]} 36. Nxh6 {[%emt 0:03:11]} Nxh6 {[%emt 0:05:20]} 37. Rxh6+ {[%emt 0:03:32]} Qxh6 {[%emt 0:05:45]} 38. Qxd8 {[%emt 0:03:59]} Rxc3 {[%emt 0:01:46]} 39. Nxe6 {[%emt 0:04:05]} Qh5 {[%emt 0:00:22]} 40. Ng5+ {[%emt 0:04:14]} 1-0

[Event "German Masters Women 2018"]
[Site "Dresden"]
[Date "2018.08.11"]
[Round "8.4"]
[White "Klek, Hanna Marie"]
[Black "Osmanodja, Filiz"]
[Result "1/2-1/2"]
[ECO "A84"]
[WhiteElo "2268"]
[BlackElo "2350"]
[Annotator "NA"]
[PlyCount "108"]
[EventDate "2018.08.04"]
[EventType "tourn"]
[EventCountry "GER"]
[SourceTitle "playchess.com"]
[Source "ChessBase"]
[SourceQuality "1"]
[TimeControl "40/5400+30:1800+30"]

1. d4 {[%emt 1:30:28]} Nf6 {[%emt 1:24:25]} 2. Nf3 {[%emt 1:30:52]} d5 {[%emt 1:23:35]} 3. e3 {[%emt 1:30:56]} e6 {[%emt 1:22:25]} 4. Bd3 {[%emt 1:31:20]} Bd6 {[%emt 1:22:44]} 5. O-O {[%emt 1:31:43]} O-O {[%emt 1:23:10]} 6. b3 {[%emt 1:32:04]} Ne4 {[%emt 1:20:01]} 7. c4 {[%emt 1:31:07]} c6 {[%emt 1:17:53]} 8. Qc2 {[%emt 1:23:19]} f5 {[%emt 1:17:13]} 9. Ba3 {[%emt 1:23:18]} Bxa3 {[%emt 1:12:16]} 10. Nxa3 {[%emt 1:23:41]} Qd6 {[%emt 1:05:03]} 11. Nb1 {[%emt 1:19:31]} Nd7 {[%emt 1:04:28]} 12. Nbd2 {[%emt 1:13:31]} Rf6 {[%emt 0:59:53]} 13. Rfd1 {[%emt 1:10:35]} Rh6 {[%emt 0:59:37]} 14. Nf1 {[%emt 1:10:48]} Qe7 {[%emt 0:45:09]} 15. a3 {[%emt 1:02:50]} g5 {[%emt 0:39:44]} 16. b4 {[%emt 1:01:43]} g4 {[%emt 0:39:32]} 17. Ne1 {[%emt 0:56:25]} a6 {[%emt 0:33:41]} 18. Rdc1 {[%emt 0:50:16]} Ndf6 {[%emt 0:28:49]} 19. Be2 {[%emt 0:48:02]} Bd7 {[%emt 0:26:14]} 20. Nd3 {[%emt 0:46:01]} Be8 {[%emt 0:25:14]} 21. a4 {[%emt 0:42:25]} Nd6 {[%emt 0:21:04]} 22. Nc5 {[%emt 0:32:19]} b6 {[%emt 0:15:33]} 23. Nb3 {[%emt 0:32:22]} dxc4 {[%emt 0:12:35]} 24. Bxc4 {[%emt 0:32:21]} Nxc4 {[%emt 0:12:15]} 25. Qxc4 {[%emt 0:32:41]} Nd5 {[%emt 0:12:40]} 26. a5 {[%emt 0:26:44]} b5 {[%emt 0:10:48]} 27. Qe2 {[%emt 0:26:05]} Nxb4 {[%emt 0:08:27]} 28. e4 {[%emt 0:26:23]} fxe4 {[%emt 0:02:22]} 29. Qxg4+ {[%emt 0:23:56]} Bg6 {[%emt 0:02:23]} 30. Nc5 {[%emt 0:23:38]} Nd3 {[%emt 0:01:49]} 31. Nxd3 {[%emt 0:23:36]} exd3 {[%emt 0:02:17]} 32. Rxc6 {[%emt 0:23:43]} Rh4 {[%emt 0:01:53]} 33. Qg3 {[%emt 0:15:32]} Rxd4 {[%emt 0:02:17]} 34. Nd2 {[%emt 0:14:24]} Qf6 {[%emt 0:01:20]} 35. Rd1 {[%emt 0:13:26]} Ra4 {[%emt 0:00:48]} 36. Re1 {[%emt 0:09:41]} Ra1 {[%emt 0:00:10]} 37. Qe3 {[%emt 0:08:23]} Rxe1+ {[%emt 0:00:13]} 38. Qxe1 {[%emt 0:08:52]} Bf5 {[%emt 0:00:13]} 39. h3 {[%emt 0:09:01]} h5 {[%emt 0:00:11]} 40. Qe3 {[%emt 0:08:26]} h4 {[%emt 0:00:11]} 41. Nf3 {[%emt 0:02:24]} Kh8 {[%emt 0:18:40]} 42. Kh2 {[%emt 0:30:11]} Kg8 {[%emt 0:12:45]} 43. Rd6 {[%emt 0:25:07]} b4 {[%emt 0:10:24]} 44. Rb6 {[%emt 0:21:46]} Qe7 {[%emt 0:08:20]} 45. Qf4 {[%emt 0:20:59]} Rd8 {[%emt 0:04:32]} 46. Rxb4 {[%emt 0:20:19]} Qd6 {[%emt 0:04:51]} 47. Ne5 {[%emt 0:19:03]} Qxb4 {[%emt 0:01:45]} 48. Qxb4 {[%emt 0:16:13]} d2 {[%emt 0:02:13]} 49. Qxh4 {[%emt 0:16:21]} d1=Q {[%emt 0:02:00]} 50. Qg5+ {[%emt 0:16:41]} Kh7 {[%emt 0:00:58]} 51. Qe7+ {[%emt 0:14:28]} Kg8 {[%emt 0:01:21]} 52. Qf7+ {[%emt 0:13:27]} Kh8 53. Qf6+ {[%emt 0:13:40]} Kg8 {[%emt 0:01:14]} 54. Qf7+ {[%emt 0:13:17]} Kh8 {[%emt 0:01:40]} 1/2-1/2

[Event "German Masters Women 2018"]
[Site "Dresden"]
[Date "2018.08.11"]
[Round "8.5"]
[White "Lubbe, Melanie"]
[Black "Heinemann, Josefine"]
[Result "1-0"]
[ECO "C54"]
[WhiteElo "2338"]
[BlackElo "2261"]
[Annotator "NA"]
[PlyCount "81"]
[EventDate "2018.08.04"]
[EventType "tourn"]
[EventCountry "GER"]
[SourceTitle "playchess.com"]
[Source "ChessBase"]
[SourceQuality "1"]
[TimeControl "40/5400+30:1800+30"]

1. e4 {[%emt 1:30:27]} e5 {[%emt 1:30:21]} 2. Nf3 {[%emt 1:30:52]} Nc6 {[%emt 1:30:47]} 3. Bc4 {[%emt 1:31:18]} Bc5 {[%emt 1:31:11]} 4. c3 {[%emt 1:31:38]} Nf6 {[%emt 1:31:24]} 5. d3 {[%emt 1:32:03]} a6 {[%emt 1:31:08]} 6. O-O {[%emt 1:32:12]} d6 {[%emt 1:31:20]} 7. a4 {[%emt 1:32:28]} h6 {[%emt 1:29:09]} 8. b4 {[%emt 1:30:19]} Bb6 {[%emt 1:28:11]} 9. Be3 {[%emt 1:24:05]} Bxe3 {[%emt 1:26:25]} 10. fxe3 {[%emt 1:24:31]} O-O {[%emt 1:25:34]} 11. Qe1 {[%emt 1:15:58]} d5 {[%emt 1:18:13]} 12. exd5 {[%emt 1:13:43]} Nxd5 {[%emt 1:18:38]} 13. Nbd2 {[%emt 1:02:55]} Nb6 {[%emt 1:13:21]} 14. b5 {[%emt 0:59:08]} Nxc4 {[%emt 1:11:13]} 15. dxc4 {[%emt 0:54:56]} Na5 {[%emt 1:08:40]} 16. Nxe5 {[%emt 0:50:32]} Be6 {[%emt 1:08:58]} 17. Rd1 {[%emt 0:42:21]} Qd6 {[%emt 1:05:14]} 18. Qg3 {[%emt 0:31:51]} Rad8 {[%emt 1:00:56]} 19. c5 {[%emt 0:29:00]} Qxc5 {[%emt 0:58:56]} 20. Ne4 {[%emt 0:28:40]} Qe7 {[%emt 0:57:05]} 21. Nf6+ {[%emt 0:18:56]} Kh8 {[%emt 0:57:26]} 22. Nh5 {[%emt 0:15:28]} Rg8 {[%emt 0:51:48]} 23. Nf4 {[%emt 0:11:49]} Bf5 {[%emt 0:48:06]} 24. Nd5 {[%emt 0:10:37]} Qe6 {[%emt 0:43:02]} 25. Nxc7 {[%emt 0:10:15]} Rxd1 {[%emt 0:42:53]} 26. Nxe6 {[%emt 0:09:51]} Rxf1+ {[%emt 0:43:20]} 27. Kxf1 {[%emt 0:10:19]} Bxe6 {[%emt 0:43:37]} 28. Qf4 {[%emt 0:08:25]} axb5 {[%emt 0:41:52]} 29. axb5 {[%emt 0:08:48]} Rc8 {[%emt 0:40:38]} 30. Qb4 {[%emt 0:05:04]} Nc4 {[%emt 0:40:21]} 31. Nxc4 {[%emt 0:05:22]} Rxc4 {[%emt 0:39:30]} 32. Qe7 {[%emt 0:05:07]} Rxc3 {[%emt 0:36:01]} 33. Qxb7 {[%emt 0:05:20]} Rxe3 {[%emt 0:34:29]} 34. b6 {[%emt 0:04:51]} Rc3 {[%emt 0:32:18]} 35. Qa8+ {[%emt 0:03:44]} Kh7 {[%emt 0:32:15]} 36. Qe4+ {[%emt 0:03:26]} g6 {[%emt 0:32:18]} 37. b7 {[%emt 0:03:05]} Rb3 {[%emt 0:30:53]} 38. Qc6 {[%emt 0:02:51]} Bc4+ {[%emt 0:30:46]} 39. Kf2 {[%emt 0:02:47]} Rb2+ {[%emt 0:30:54]} 40. Ke3 {[%emt 0:02:45]} Bf1 {[%emt 0:25:42]} 41. Qc7 {[%emt 0:01:37]} 1-0

[Event "German Masters Women 2018"]
[Site "Dresden"]
[Date "2018.08.12"]
[Round "9.2"]
[White "Osmanodja, Filiz"]
[Black "Lubbe, Melanie"]
[Result "1-0"]
[ECO "B76"]
[WhiteElo "2350"]
[BlackElo "2338"]
[Annotator "NA"]
[PlyCount "77"]
[EventDate "2018.08.04"]
[EventType "tourn"]
[EventCountry "GER"]
[SourceTitle "playchess.com"]
[Source "ChessBase"]
[SourceQuality "1"]
[TimeControl "40/5400+30:1800+30"]

1. e4 {[%emt 1:29:45]} c5 {[%emt 1:30:25]} 2. Nf3 {[%emt 1:30:09]} Nc6 {[%emt 1:30:45]} 3. d4 {[%emt 1:30:29]} cxd4 {[%emt 1:31:11]} 4. Nxd4 {[%emt 1:30:57]} g6 {[%emt 1:31:13]} 5. Nc3 {[%emt 1:31:25]} Bg7 {[%emt 1:31:38]} 6. Be3 {[%emt 1:31:52]} Nf6 {[%emt 1:31:12]} 7. Bc4 {[%emt 1:30:43]} O-O {[%emt 1:30:53]} 8. Bb3 {[%emt 1:30:43]} d6 {[%emt 1:31:02]} 9. f3 {[%emt 1:29:50]} Bd7 {[%emt 1:30:47]} 10. h4 {[%emt 1:28:27]} Nxd4 {[%emt 1:28:49]} 11. Bxd4 {[%emt 1:28:15]} b5 {[%emt 1:29:02]} 12. h5 {[%emt 1:25:14]} a5 {[%emt 1:26:42]} 13. hxg6 {[%emt 1:25:04]} hxg6 {[%emt 1:23:04]} 14. Nd5 {[%emt 1:24:58]} Nxd5 {[%emt 1:04:06]} 15. Bxd5 {[%emt 1:25:06]} Rc8 {[%emt 1:00:34]} 16. Bxg7 {[%emt 1:21:05]} Kxg7 {[%emt 1:00:58]} 17. Qd4+ {[%emt 1:21:16]} e5 {[%emt 0:49:22]} 18. Qd2 {[%emt 1:18:19]} Qc7 {[%emt 0:35:08]} 19. Qh6+ {[%emt 1:04:54]} Kf6 {[%emt 0:34:56]} 20. f4 {[%emt 0:54:47]} exf4 {[%emt 0:15:40]} 21. Qxf4+ {[%emt 0:45:30]} Kg7 {[%emt 0:14:35]} 22. Qh6+ {[%emt 0:43:14]} Kf6 {[%emt 0:15:04]} 23. Qh4+ {[%emt 0:39:00]} Kg7 {[%emt 0:15:11]} 24. Qh7+ {[%emt 0:37:20]} Kf6 {[%emt 0:15:38]} 25. O-O+ {[%emt 0:35:38]} Kg5 {[%emt 0:13:17]} 26. Bxf7 {[%emt 0:30:35]} Qa7+ {[%emt 0:10:14]} 27. Rf2 {[%emt 0:29:43]} Bf5 {[%emt 0:10:04]} 28. exf5 {[%emt 0:19:49]} Qxf7 {[%emt 0:10:30]} 29. Qh2 {[%emt 0:18:47]} gxf5 {[%emt 0:10:43]} 30. Qg3+ {[%emt 0:14:49]} Kh5 {[%emt 0:08:55]} 31. Rd1 {[%emt 0:08:14]} Rc4 {[%emt 0:06:33]} 32. Rxd6 {[%emt 0:07:55]} Rh4 {[%emt 0:05:32]} 33. Qf3+ {[%emt 0:06:51]} Rg4 {[%emt 0:04:42]} 34. Qh3+ {[%emt 0:03:50]} Rh4 {[%emt 0:05:06]} 35. g4+ {[%emt 0:03:53]} Kg5 {[%emt 0:04:04]} 36. Qe3+ {[%emt 0:03:32]} f4 {[%emt 0:04:23]} 37. Qe5+ {[%emt 0:03:49]} Kxg4 {[%emt 0:04:50]} 38. Rg2+ {[%emt 0:03:47]} Kh3 {[%emt 0:05:04]} 39. Rd3+ {[%emt 0:04:11]} 1-0

[Event "German Masters Women 2018"]
[Site "Dresden"]
[Date "2018.08.12"]
[Round "9.3"]
[White "Schneider, Jana"]
[Black "Klek, Hanna Marie"]
[Result "1/2-1/2"]
[ECO "C54"]
[WhiteElo "2179"]
[BlackElo "2268"]
[Annotator "RC"]
[PlyCount "111"]
[EventDate "2018.08.04"]
[EventType "tourn"]
[EventCountry "GER"]
[SourceTitle "playchess.com"]
[Source "ChessBase"]
[SourceQuality "1"]
[TimeControl "40/5400+30:1800+30"]

1. e4 {[%emt 1:30:26]} e5 {[%emt 1:30:23]} 2. Nf3 {[%emt 1:30:48]} Nc6 {[%emt 1:30:50]} 3. Bc4 {[%emt 1:31:10]} Bc5 {[%emt 1:31:17]} 4. d3 {[%emt 1:31:01]} Nf6 {[%emt 1:31:40]} 5. O-O {[%emt 1:31:10]} d6 {[%emt 1:32:02]} 6. c3 {[%emt 1:31:14]} a5 {[%emt 1:32:15]} 7. a4 {[%emt 1:29:56]} h6 {[%emt 1:32:22]} 8. Na3 {[%emt 1:27:36]} O-O {[%emt 1:32:36]} 9. Re1 {[%emt 1:22:34]} Ne7 {[%emt 1:20:35]} 10. Nc2 {[%emt 1:18:49]} Ng6 {[%emt 1:20:20]} 11. Be3 {[%emt 1:12:53]} Bxe3 {[%emt 1:18:27]} 12. Nxe3 {[%emt 1:12:12]} c6 {[%emt 1:12:39]} 13. Ba2 {[%emt 1:10:14]} Re8 {[%emt 1:02:01]} 14. Qc2 {[%emt 1:04:07]} Be6 {[%emt 0:47:57]} 15. Bxe6 {[%emt 1:03:43]} Rxe6 {[%emt 0:48:17]} 16. Rad1 {[%emt 1:01:57]} Qc7 {[%emt 0:44:38]} 17. g3 {[%emt 0:52:43]} Rd8 {[%emt 0:43:34]} 18. h4 {[%emt 0:52:03]} Nf8 {[%emt 0:33:36]} 19. Nd2 {[%emt 0:45:35]} d5 {[%emt 0:33:27]} 20. exd5 {[%emt 0:41:08]} Nxd5 {[%emt 0:32:16]} 21. Nf3 {[%emt 0:33:56]} Qe7 {[%emt 0:25:33]} 22. Nc4 {[%emt 0:30:20]} Ng6 {[%emt 0:21:57]} 23. h5 {[%emt 0:23:28]} Nf8 {[%emt 0:18:00]} 24. Ncxe5 {[%emt 0:19:49]} Nf6 {[%emt 0:10:16]} 25. d4 {[%emt 0:13:34]} Nxh5 {[%emt 0:09:44]} 26. c4 {[%emt 0:11:56]} Qc7 {[%emt 0:07:35]} 27. Kg2 {[%emt 0:05:48]} Ng6 {[%emt 0:05:50]} 28. Nd3 {[%emt 0:05:03]} Rxe1 {[%emt 0:05:53]} 29. Rxe1 {[%emt 0:05:28]} Nf6 {[%emt 0:05:55]} 30. Nc5 {[%emt 0:02:26]} Qc8 {[%emt 0:03:04]} 31. Ne4 {[%emt 0:01:22]} Ne8 {[%emt 0:03:20]} 32. Qc1 {[%emt 0:01:06]} Nd6 {[%emt 0:02:58]} 33. Nxd6 {[%emt 0:00:40]} Rxd6 {[%emt 0:00:36]} 34. Qe3 {[%emt 0:01:06]} Re6 35. Qd2 Rxe1 36. Qxe1 {Qd6 Qf4} Qd8 {[%emt 0:03:13]} 37. Qe4 {[%emt 0:01:13]} Ne7 {[%emt 0:00:50]} 38. Ne5 {[%emt 0:01:15]} Qd6 {[%emt 0:01:07]} 39. Nd3 {[%emt 0:00:49]} b6 {[%emt 0:01:11]} 40. Ne5 {[%emt 0:00:46]} f6 {[%emt 0:01:14]} 41. Ng4 {[%emt 0:24:09]} h5 {[%emt 0:26:46]} 42. Ne3 {[%emt 0:23:59]} g6 {[%emt 0:21:47]} 43. f4 {[%emt 0:17:03]} Kf7 {[%emt 0:21:07]} 44. b3 {[%emt 0:10:47]} Qb4 {[%emt 0:14:27]} 45. Qd3 {[%emt 0:08:06]} Qd6 {[%emt 0:12:59]} 46. Qe4 {[%emt 0:08:07]} Qb4 {[%emt 0:13:23]} 47. Qd3 {[%emt 0:08:34]} Qd6 {[%emt 0:13:49]} 48. Kf3 {[%emt 0:06:59]} Qe6 {[%emt 0:08:13]} 49. d5 {[%emt 0:06:35]} cxd5 {[%emt 0:08:14]} 50. cxd5 {[%emt 0:06:14]} Qd6 {[%emt 0:07:53]} 51. Ke2 {[%emt 0:05:40]} Kf8 {[%emt 0:05:09]} 52. Qd4 {[%emt 0:02:53]} Kf7 {[%emt 0:05:23]} 53. Qe4 {[%emt 0:02:08]} Qd7 {[%emt 0:05:28]} 54. Qf3 {[%emt 0:00:34]} Kg7 {[%emt 0:03:57]} 55. Qe4 {[%emt 0:00:30]} Kf7 {[%emt 0:04:22]} 56. Qd4 {[%emt 0:00:41]} 1/2-1/2

[Event "German Masters Women 2018"]
[Site "Dresden"]
[Date "2018.08.12"]
[Round "9.4"]
[White "Sieber, Fiona"]
[Black "Hoolt, Sarah"]
[Result "0-1"]
[ECO "C11"]
[WhiteElo "2290"]
[BlackElo "2357"]
[Annotator "NA"]
[PlyCount "90"]
[EventDate "2018.08.04"]
[EventType "tourn"]
[EventCountry "GER"]
[SourceTitle "playchess.com"]
[Source "ChessBase"]
[SourceQuality "1"]
[TimeControl "40/5400+30:1800+30"]

1. e4 {[%emt 1:30:28]} e6 {[%emt 1:30:26]} 2. d4 {[%emt 1:30:54]} d5 {[%emt 1:30:52]} 3. Nc3 {[%emt 1:31:20]} Nf6 {[%emt 1:31:18]} 4. e5 {[%emt 1:31:46]} Nfd7 {[%emt 1:31:44]} 5. f4 {[%emt 1:32:11]} c5 {[%emt 1:32:07]} 6. Nf3 {[%emt 1:32:37]} Nc6 {[%emt 1:32:29]} 7. Be3 {[%emt 1:33:02]} Be7 {[%emt 1:32:53]} 8. Qd2 {[%emt 1:33:25]} O-O {[%emt 1:33:10]} 9. dxc5 {[%emt 1:33:52]} Qa5 {[%emt 1:32:48]} 10. O-O-O {[%emt 1:33:55]} b6 {[%emt 1:31:52]} 11. Bb5 {[%emt 1:32:33]} Nb4 {[%emt 1:28:25]} 12. a3 {[%emt 1:31:53]} bxc5 {[%emt 1:27:34]} 13. Kb1 {[%emt 1:30:01]} Rb8 {[%emt 1:26:33]} 14. axb4 {[%emt 1:29:16]} cxb4 {[%emt 1:26:33]} 15. Nxd5 {[%emt 1:29:30]} exd5 {[%emt 1:26:43]} 16. Bxd7 {[%emt 1:29:55]} Bxd7 {[%emt 1:27:08]} 17. Qxd5 {[%emt 1:30:21]} Qxd5 {[%emt 1:27:31]} 18. Rxd5 {[%emt 1:30:48]} Bc6 {[%emt 1:27:54]} 19. Ra5 {[%emt 1:29:02]} Rfc8 {[%emt 1:28:11]} 20. Nd2 {[%emt 1:17:00]} Bxg2 {[%emt 1:22:50]} 21. Rg1 {[%emt 1:16:16]} Bh3 {[%emt 1:22:50]} 22. Nb3 {[%emt 1:00:15]} Bf5 {[%emt 1:20:45]} 23. Rg2 {[%emt 1:00:09]} Rc4 {[%emt 1:10:21]} 24. Re2 {[%emt 0:39:52]} Rd8 {[%emt 1:04:08]} 25. Rxa7 {[%emt 0:33:55]} Bf8 {[%emt 1:00:13]} 26. Rb7 {[%emt 0:33:07]} g6 {[%emt 0:58:46]} 27. Nc1 {[%emt 0:19:30]} Rxc2 {[%emt 0:56:09]} 28. Rxc2 {[%emt 0:18:55]} Rc8 {[%emt 0:56:33]} 29. Ka2 {[%emt 0:16:27]} Bxc2 {[%emt 0:56:15]} 30. Nb3 {[%emt 0:15:39]} Be4 {[%emt 0:55:43]} 31. Rb5 {[%emt 0:14:27]} Bd3 {[%emt 0:54:47]} 32. Ra5 {[%emt 0:12:34]} Bc4 {[%emt 0:55:00]} 33. Bb6 {[%emt 0:11:50]} Be6 {[%emt 0:52:48]} 34. Ra7 {[%emt 0:07:55]} Bc5 {[%emt 0:45:03]} 35. Bxc5 {[%emt 0:04:50]} Rxc5 {[%emt 0:45:31]} 36. Ra4 {[%emt 0:04:59]} Rb5 {[%emt 0:45:37]} 37. Ra6 {[%emt 0:04:28]} Bc4 {[%emt 0:45:03]} 38. Ra8+ {[%emt 0:03:33]} Kg7 {[%emt 0:45:21]} 39. h3 {[%emt 0:03:16]} Kh6 {[%emt 0:45:38]} 40. Ra7 {[%emt 0:02:55]} Kh5 {[%emt 0:45:18]} 41. Ra8 {[%emt 0:24:25]} Kh4 {[%emt 1:15:06]} 42. Ra6 {[%emt 0:24:32]} h5 {[%emt 1:14:29]} 43. Rd6 {[%emt 0:21:47]} Ra5+ {[%emt 1:11:23]} 44. Kb1 {[%emt 0:22:13]} Bxb3 {[%emt 1:11:43]} 45. Rd4 {[%emt 0:17:08]} Rd5 {[%emt 1:11:47]} 0-1